fUST/lending_fUST_20250119
["ID","MTS","AMOUNT","RATE_DAILY","PERIOD"]
[349517489,1737269438013,-4517.38192657,0.00021816,2]
[349517490,1737269438023,-178.16193321,0.00021816,2]
[349517491,1737269438032,-184.42547663,0.00021816,2]
[349517492,1737269438042,-184.42547662,0.00021817,2]
[349517493,1737269438051,-154.42,0.00021817,2]
[349517494,1737269438060,-165.774,0.00021817,2]
[349517495,1737269438070,-184.42547662,0.00021817,2]
[349517496,1737269438079,-417.625,0.00021916,2]
[349517497,1737269438088,-550.01191399,0.00021916,2]
[349517498,1737269438098,-225.0,0.00021916,2]
[349517499,1737269438107,-500.0,0.00021916,2]
[349517500,1737269438116,-638.14453983,0.00021916,2]
[349517501,1737269438126,-500.0,0.00021916,2]
[349517502,1737269438135,-500.0,0.00021916,2]
[349517503,1737269438144,-500.0,0.00021916,2]
[349517504,1737269438153,-500.0,0.00021916,2]
[349517505,1737269438164,-500.0,0.00021916,2]
[349517506,1737269438173,-500.0,0.00021916,2]
[349517507,1737269438183,-500.0,0.00021916,2]
[349517508,1737269438192,-556.9501295,0.00021916,2]
[349517509,1737269438202,-500.0,0.00021916,2]
[349517510,1737269438211,-500.0,0.00021916,2]
[349517511,1737269438220,-500.0,0.00021916,2]
[349517512,1737269438230,-500.0,0.00021916,2]
[349517513,1737269438239,-500.0,0.00021916,2]
[349517514,1737269438249,-500.0,0.00021916,2]
[349517515,1737269438258,-500.0,0.00021916,2]
[349517516,1737269438268,-500.0,0.00021916,2]
[349517517,1737269438383,-500.0,0.00021916,2]
[349517518,1737269438394,-500.0,0.00021916,2]
[349517519,1737269438403,-500.0,0.00021916,2]
[349517520,1737269438413,-500.0,0.00021916,2]
[349517521,1737269438423,-141.17731607,0.00021916,2]
[349517522,1737269438435,-358.82268393,0.00021916,2]
[349517523,1737269438445,-438.6341802,0.00021916,2]
[349517529,1737269440375,-61.3658198,0.00021916,2]
[349517530,1737269440385,-500.0,0.00021916,2]
[349517531,1737269440395,-500.0,0.00021916,2]
[349517532,1737269440406,-500.0,0.00021916,2]
[349517533,1737269440415,-500.0,0.00021916,2]
[349517534,1737269440423,-500.0,0.00021916,2]
[349517535,1737269440433,-500.0,0.00021916,2]
[349517536,1737269440442,-500.0,0.00021916,2]
[349517537,1737269440453,-500.0,0.00021916,2]
[349517538,1737269440463,-500.0,0.00021916,2]
[349517539,1737269440472,-500.0,0.00021916,2]
[349517540,1737269440481,-500.0,0.00021916,2]
[349517541,1737269440492,-500.0,0.00021916,2]
[349517542,1737269440501,-500.0,0.00021916,2]
[349517543,1737269440511,-500.0,0.00021916,2]
[349517544,1737269440519,-500.0,0.00021916,2]
[349517545,1737269440529,-500.0,0.00021916,2]
[349517546,1737269440538,-500.0,0.00021916,2]
[349517547,1737269440548,-500.0,0.00021916,2]
[349517548,1737269440558,-500.0,0.00021916,2]
[349517549,1737269440567,-500.0,0.00021916,2]
[349517550,1737269440576,-500.0,0.00021916,2]
[349517551,1737269440586,-427.75871715,0.00021916,2]
[349517552,1737269440595,-500.0,0.00021916,2]
[349517553,1737269440605,-500.0,0.00021916,2]
[349517554,1737269440615,-500.0,0.00021916,2]
[349517555,1737269440624,-500.0,0.00021916,2]
[349517556,1737269440634,-500.0,0.00021916,2]
[349517557,1737269440644,-500.0,0.00021916,2]
[349517558,1737269440656,-500.0,0.00021916,2]
[349517559,1737269440666,-500.0,0.00021916,2]
[349517560,1737269440676,-500.0,0.00021916,2]
[349517561,1737269440686,-500.0,0.00021916,2]
[349517562,1737269440695,-500.0,0.00021916,2]
[349517563,1737269440705,-500.0,0.00021916,2]
[349517564,1737269440715,-500.0,0.00021916,2]
[349517565,1737269440725,-500.0,0.00021916,2]
[349517566,1737269440734,-500.0,0.00021916,2]
[349517567,1737269440744,-500.0,0.00021916,2]
[349517568,1737269440754,-500.0,0.00021916,2]
[349517569,1737269440765,-407.11503158,0.00021916,2]
[349517570,1737269440775,-500.0,0.00021916,2]
[349517571,1737269440784,-500.0,0.00021916,2]
[349517572,1737269440794,-500.0,0.00021916,2]
[349517573,1737269440803,-500.0,0.00021916,2]
[349517574,1737269440813,-500.0,0.00021916,2]
[349517575,1737269440822,-500.0,0.00021916,2]
[349517576,1737269440833,-500.0,0.00021916,2]
[349517577,1737269440842,-500.0,0.00021916,2]
[349517578,1737269440852,-500.0,0.00021916,2]
[349517579,1737269440862,-300.0,0.00021916,2]
[349517580,1737269440872,-500.0,0.00021916,2]
[349517581,1737269440882,-500.0,0.00021916,2]
[349517582,1737269440891,-500.0,0.00021916,2]
[349517583,1737269440901,-500.0,0.00021916,2]
[349517584,1737269440913,-4695.28534527,0.00021916,5]
[349517585,1737269440922,-21308.4750862,0.00021916,5]
[349517611,1737269443181,-1465.74960543,0.000219,3]
[349517612,1737269443190,-11999.94837122,0.00021916,5]
[349517616,1737269445994,-1003.93361957,0.00021916,5]
[349517617,1737269533895,161.550279,0.00013973,2]
[349517620,1737270404501,161.550279,0.00013973,2]
[349517669,1737270632288,-542.39661135,0.00019253,2]
[349517671,1737270632298,-181.46895424,0.00019643,2]
[349517673,1737270632309,-209.4219803,0.00020041,2]
[349517685,1737270632413,-290.5780197,0.00020041,2]
[349517687,1737270632422,-398.8765751,0.00020143,2]
[349517689,1737270632432,-252.005674,0.00020287,2]
[349517691,1737270632442,-161.550279,0.00020807,2]
[349517693,1737270632451,-368.0,0.00020843,2]
[349517695,1737270632460,-300.0,0.00020891,2]
[349517697,1737270632470,-8114.6761634,0.00020892,2]
[349517699,1737270632479,-341.49660024,0.00021,2]
[349517701,1737270632489,-823.21976177,0.00021486,2]
[349517814,1737270643431,-9353.55974927,0.00021486,2]
[349517816,1737270643442,-178.16193318,0.00021817,2]
[349517818,1737270643451,-165.775,0.000219,2]
[349517820,1737270643461,-1416.89128522,0.000219,3]
[349517823,1737270643471,-500.0,0.00021916,2]
[349517825,1737270643480,-450.77223661,0.00021916,2]
[349517826,1737270643490,-500.0,0.00021916,2]
[349517827,1737270643499,-500.0,0.00021916,2]
[349517828,1737270643508,-500.0,0.00021916,2]
[349517829,1737270643518,-214.19541302,0.00021916,2]
[349517830,1737270643526,-520.71150315,0.00021916,2]
[349517831,1737270643532,-500.0,0.00021916,2]
[349517832,1737270643539,-500.0,0.00021916,2]
[349517833,1737270643546,-23487.90219158,0.00021917,5]
[349517834,1737270643553,-2347.64267263,0.00021917,5]
[349517835,1737270643560,-503.04350945,0.00021917,2]
[349517836,1737270643567,-500.0,0.00021917,3]
[349517837,1737270643573,-484.89126471,0.00021917,3]
[349517838,1737270643580,-500.64782078,0.00021917,3]
[349517839,1737270643586,-333.71033379,0.00021917,3]
[349517840,1737270643594,-501.14516273,0.00021917,3]
[349517841,1737270643705,-612.02162582,0.00021917,3]
[349517842,1737270643712,-501.14541077,0.00021917,3]
[349517843,1737270643721,-501.80783993,0.00021917,3]
[349517844,1737270643730,-501.99613733,0.00021917,3]
[349517845,1737270643740,-500.0,0.00021917,3]
[349517846,1737270643749,-501.79712365,0.00021917,3]
[349517847,1737270643758,-500.0,0.00021917,3]
[349517848,1737270643768,-410.87524537,0.00021917,3]
[349517849,1737270643776,-500.0,0.00021917,3]
[349517850,1737270643786,-501.95044939,0.00021917,3]
[349517851,1737270643795,-500.0,0.00021917,3]
[349517852,1737270643804,-535.21877951,0.00021917,3]
[349517853,1737270643813,-500.0,0.00021917,3]
[349517854,1737270643822,-500.0,0.00021917,3]
[349517855,1737270643831,-500.0,0.00021917,3]
[349517856,1737270643840,-151.0,0.00021917,2]
[349517857,1737270643849,-500.0,0.00021917,3]
[349517858,1737270643859,-500.0,0.00021917,3]
[349517859,1737270643871,-500.0,0.00021917,3]
[349517860,1737270643880,-500.0,0.00021917,3]
[349517861,1737270643889,-500.0,0.00021917,3]
[349517862,1737270643898,-500.0,0.00021917,3]
[349517863,1737270643911,-500.0,0.00021917,3]
[349517864,1737270643920,-500.0,0.00021917,3]
[349517865,1737270643929,-500.0,0.00021917,3]
[349517866,1737270643938,-502.11306301,0.00021917,3]
[349517867,1737270643948,-500.0,0.00021917,3]
[349517868,1737270643958,-502.71888487,0.00021917,3]
[349517869,1737270643967,-500.0,0.00021917,3]
[349517870,1737270643976,-502.36110382,0.00021917,3]
[349517871,1737270643985,-151.0,0.00021917,2]
[349517872,1737270643994,-501.82912499,0.00021917,3]
[349517873,1737270644004,-500.0,0.00021917,3]
[349517874,1737270644012,-500.0,0.00021917,3]
[349517875,1737270644022,-500.0,0.00021917,3]
[349517876,1737270644031,-500.0,0.00021917,3]
[349517877,1737270644040,-502.1781277,0.00021917,3]
[349517878,1737270644050,-500.0,0.00021917,3]
[349517879,1737270644059,-501.54478043,0.00021917,3]
[349517880,1737270644068,-500.0,0.00021917,3]
[349517881,1737270644077,-501.50332111,0.00021917,3]
[349517882,1737270644086,-151.0,0.00021917,2]
[349517883,1737270644095,-153.59137,0.00021917,2]
[349517884,1737270644104,-500.0,0.00021917,3]
[349517885,1737270644114,-500.0,0.00021917,3]
[349517886,1737270644123,-500.0,0.00021917,3]
[349517887,1737270644132,-500.0,0.00021917,3]
[349517888,1737270644141,-500.0,0.00021917,3]
[349517889,1737270644151,-500.0,0.00021917,3]
[349517890,1737270644160,-500.0,0.00021917,3]
[349517891,1737270644169,-500.0,0.00021917,3]
[349517892,1737270644178,-500.0,0.00021917,3]
[349517893,1737270644187,-500.0,0.00021917,3]
[349517894,1737270644197,-500.0,0.00021917,3]
[349517895,1737270644207,-504.49095722,0.00021917,3]
[349517896,1737270644216,-500.0,0.00021917,3]
[349517897,1737270644225,-500.0,0.00021917,2]
[349517898,1737270644234,-500.0,0.00021917,2]
[349517899,1737270644244,-500.0,0.00021917,2]
[349517900,1737270644257,-500.0,0.00021917,2]
[349517901,1737270644267,-508.45668982,0.00021917,3]
[349517902,1737270644276,-500.0,0.00021917,2]
[349517903,1737270644287,-500.0,0.00021917,2]
[349517904,1737270644299,-500.0,0.00021917,2]
[349517905,1737270644308,-500.0,0.00021917,2]
[349517906,1737270644318,-361.384943,0.00021917,2]
[349517907,1737270644327,-500.0,0.00021917,3]
[349517908,1737270644337,-500.66926476,0.00021917,3]
[349517909,1737270644346,-500.0,0.00021917,3]
[349517910,1737270644355,-500.0,0.00021917,3]
[349517911,1737270644365,-501.29341448,0.00021917,3]
[349517912,1737270644375,-500.0,0.00021917,3]
[349517913,1737270644384,-502.4400366,0.00021917,3]
[349517914,1737270644395,-500.0,0.00021917,3]
[349517915,1737270644405,-500.0,0.00021917,3]
[349517916,1737270644414,-504.6716345,0.00021917,3]
[349517917,1737270644423,-500.0,0.00021917,3]
[349517918,1737270644433,-500.0,0.00021917,3]
[349517919,1737270644442,-589.91300702,0.00021917,3]
[349517920,1737270644452,-500.0,0.00021917,3]
[349517921,1737270644461,-500.0,0.00021917,3]
[349517922,1737270644471,-500.0,0.00021917,3]
[349517923,1737270644480,-504.50367071,0.00021917,3]
[349517924,1737270644489,-500.0,0.00021917,3]
[349517925,1737270644498,-500.0,0.00021917,3]
[349517926,1737270644508,-500.0,0.00021917,3]
[349517927,1737270644518,-200.0,0.00021917,3]
[349517928,1737270644527,-502.09692297,0.00021917,3]
[349517929,1737270644537,-500.0,0.00021917,3]
[349517930,1737270644546,-475.10342369,0.00021917,3]
[349517931,1737270644555,-500.0,0.00021917,3]
[349517932,1737270644565,-500.0,0.00021917,3]
[349517933,1737270644575,-501.04734465,0.00021917,3]
[349517934,1737270644584,-202.92888916,0.00021917,3]
[349517935,1737270644594,-500.0,0.00021917,3]
[349517936,1737270644604,-504.24644862,0.00021917,3]
[349517937,1737270644613,-500.0,0.00021917,3]
[349517938,1737270644623,-503.06842754,0.00021917,3]
[349517939,1737270644632,-503.38226792,0.00021917,3]
[349517940,1737270644642,-500.0,0.00021917,3]
[349517941,1737270644652,-500.0,0.00021917,3]
[349517942,1737270644662,-503.13950756,0.00021917,3]
[349517943,1737270644671,-500.0,0.00021917,3]
[349517944,1737270644681,-502.63116786,0.00021917,2]
[349517945,1737270644691,-502.89132438,0.00021917,3]
[349517946,1737270644700,-501.09807446,0.00021917,3]
[349517947,1737270644709,-500.0,0.00021917,3]
[349517948,1737270644719,-500.0,0.00021917,3]
[349517949,1737270644729,-500.0,0.00021917,3]
[349517950,1737270644738,-503.42011598,0.00021917,3]
[349517951,1737270644748,-500.0,0.00021917,3]
[349517952,1737270644758,-503.09566793,0.00021917,3]
[349517953,1737270644768,-151.0,0.00021917,2]
[349517954,1737270644778,-151.0,0.00021917,2]
[349517955,1737270644787,-151.0,0.00021917,2]
[349517956,1737270644796,-151.0,0.00021917,2]
[349517957,1737270644807,-500.0,0.00021917,3]
[349517958,1737270644818,-265.9487614,0.00021917,3]
[349517959,1737270644827,-500.0,0.00021917,3]
[349517960,1737270644836,-502.51624626,0.00021917,3]
[349517961,1737270644846,-500.0,0.00021917,3]
[349517962,1737270644855,-502.78556046,0.00021917,3]
[349517963,1737270644865,-502.74182284,0.00021917,3]
[349517964,1737270644875,-151.0,0.00021917,2]
[349517965,1737270644885,-151.0,0.00021917,2]
[349517966,1737270644894,-500.0,0.00021917,3]
[349517967,1737270644904,-500.0,0.00021917,3]
[349517968,1737270644913,-308.53669766,0.00021917,3]
[349517969,1737270644923,-500.0,0.00021917,3]
[349517970,1737270644932,-504.40486327,0.00021917,3]
[349517971,1737270644942,-503.3278172,0.00021917,3]
[349517972,1737270644951,-502.81137741,0.00021917,3]
[349517973,1737270644960,-503.548066,0.00021917,3]
[349517974,1737270644969,-501.6814371,0.00021917,3]
[349517975,1737270644978,-500.0,0.00021917,3]
[349517976,1737270644988,-500.0,0.00021917,3]
[349517977,1737270644997,-500.0,0.00021917,3]
[349517978,1737270645007,-500.0,0.00021917,3]
[349517979,1737270645016,-153.188739,0.00021917,2]
[349517980,1737270645026,-502.53665992,0.00021917,3]
[349517981,1737270645035,-502.9098523,0.00021917,3]
[349517982,1737270645044,-502.26380794,0.00021917,3]
[349517983,1737270645053,-536.75422543,0.00021917,3]
[349517984,1737270645063,-497.2143442,0.00021917,3]
[349517985,1737270645072,-500.0,0.00021917,3]
[349517986,1737270645081,-500.0,0.00021917,3]
[349517987,1737270645091,-500.0,0.00021917,3]
[349517988,1737270645100,-611.04335349,0.00021917,3]
[349517989,1737270645109,-501.36505825,0.00021917,3]
[349517990,1737270645118,-500.0,0.00021917,3]
[349517991,1737270645128,-500.0,0.00021917,3]
[349517992,1737270645137,-500.0,0.00021917,3]
[349517993,1737270645146,-501.30419704,0.00021917,3]
[349517994,1737270645155,-500.0,0.00021917,3]
[349517995,1737270645165,-502.30980501,0.00021917,3]
[349517996,1737270645174,-500.0,0.00021917,3]
[349517997,1737270645183,-500.0,0.00021917,3]
[349517998,1737270645192,-500.0,0.00021917,3]
[349517999,1737270645201,-500.0,0.00021917,3]
[349518000,1737270645210,-500.0,0.00021917,3]
[349518001,1737270645219,-500.0,0.00021917,3]
[349518002,1737270645229,-502.72609648,0.00021917,3]
[349518003,1737270645238,-500.0,0.00021917,3]
[349518004,1737270645247,-502.58069334,0.00021917,3]
[349518005,1737270645259,-500.19286834,0.00021917,3]
[349518006,1737270645268,-500.0,0.00021917,3]
[349518007,1737270645278,-503.05170192,0.00021917,3]
[349518008,1737270645287,-359.27828276,0.00021917,3]
[349518009,1737270645296,-500.0,0.00021917,3]
[349518010,1737270645306,-500.0,0.00021917,2]
[349518011,1737270645315,-500.0,0.00021917,3]
[349518012,1737270645325,-500.0,0.00021917,3]
[349518013,1737270645336,-502.45696608,0.00021917,3]
[349518014,1737270645345,-500.0,0.00021917,3]
[349518015,1737270645355,-507.68266,0.00021917,3]
[349518016,1737270645364,-500.0,0.00021917,3]
[349518017,1737270645374,-500.0,0.00021917,3]
[349518018,1737270645383,-500.0,0.00021917,3]
[349518019,1737270645392,-500.0,0.00021917,3]
[349518020,1737270645402,-464.25948287,0.00021917,3]
[349518021,1737270645411,-500.0,0.00021917,3]
[349518022,1737270645420,-500.0,0.00021917,3]
[349518023,1737270645429,-500.0,0.00021917,3]
[349518024,1737270645438,-500.0,0.00021917,3]
[349518025,1737270645447,-500.0,0.00021917,3]
[349518026,1737270645457,-500.0,0.00021917,3]
[349518027,1737270645467,-500.0,0.00021917,3]
[349518028,1737270645477,-502.23969982,0.00021917,3]
[349518029,1737270645486,-500.0,0.00021917,3]
[349518030,1737270645496,-500.0,0.00021917,3]
[349518031,1737270645505,-556.37,0.00021917,3]
[349518032,1737270645515,-500.0,0.00021917,3]
[349518033,1737270645524,-500.0,0.00021917,3]
[349518034,1737270645533,-500.0,0.00021917,3]
[349518035,1737270645543,-500.0,0.00021917,3]
[349518036,1737270645553,-567.64,0.00021917,3]
[349518037,1737270645563,-502.71165564,0.00021917,3]
[349518038,1737270645572,-1184.29,0.00021917,3]
[349518039,1737270645582,-500.0,0.00021917,3]
[349518040,1737270645591,-500.0,0.00021917,3]
[349518041,1737270645601,-500.0,0.00021917,3]
[349518042,1737270645612,-500.0,0.00021917,3]
[349518043,1737270645622,-531.19,0.00021917,3]
[349518044,1737270645631,-500.0,0.00021917,3]
[349518045,1737270645641,-500.0,0.00021917,3]
[349518046,1737270645651,-559.2,0.00021917,3]
[349518047,1737270645660,-503.9787912,0.00021917,3]
[349518048,1737270645670,-500.0,0.00021917,3]
[349518049,1737270645680,-500.0,0.00021917,3]
[349518050,1737270645689,-500.0,0.00021917,3]
[349518051,1737270645700,-500.0,0.00021917,3]
[349518052,1737270645710,-500.0,0.00021917,3]
[349518053,1737270645720,-500.0,0.00021917,3]
[349518054,1737270645730,-500.0,0.00021917,3]
[349518055,1737270645740,-500.0,0.00021917,3]
[349518056,1737270645749,-500.0,0.00021917,3]
[349518057,1737270645759,-500.0,0.00021917,3]
[349518058,1737270645769,-500.0,0.00021917,3]
[349518059,1737270645778,-500.0,0.00021917,3]
[349518060,1737270645788,-500.0,0.00021917,3]
[349518061,1737270645797,-500.0,0.00021917,3]
[349518062,1737270645807,-500.0,0.00021917,3]
[349518063,1737270645816,-500.0,0.00021917,3]
[349518064,1737270645825,-617.4,0.00021917,3]
[349518065,1737270645835,-500.0,0.00021917,3]
[349518066,1737270645845,-500.0,0.00021917,3]
[349518067,1737270645855,-500.0,0.00021917,3]
[349518068,1737270645864,-500.0,0.00021917,3]
[349518069,1737270645874,-500.0,0.00021917,3]
[349518070,1737270645883,-500.0,0.00021917,3]
[349518071,1737270645893,-500.0,0.00021917,3]
[349518072,1737270645903,-500.0,0.00021917,3]
[349518073,1737270645913,-500.0,0.00021917,3]
[349518074,1737270645922,-500.0,0.00021917,3]
[349518075,1737270645931,-152.38452465,0.00021917,3]
[349518076,1737270645941,-500.0,0.00021917,3]
[349518077,1737270645951,-500.0,0.00021917,3]
[349518078,1737270645960,-500.0,0.00021917,3]
[349518079,1737270645969,-500.0,0.00021917,3]
[349518080,1737270645979,-500.0,0.00021917,3]
[349518081,1737270645988,-500.0,0.00021917,3]
[349518082,1737270645997,-500.0,0.00021917,3]
[349518083,1737270646007,-500.0,0.00021917,3]
[349518084,1737270646017,-500.0,0.00021917,3]
[349518085,1737270646026,-500.0,0.00021917,3]
[349518086,1737270646035,-500.0,0.00021917,3]
[349518087,1737270646045,-500.0,0.00021917,3]
[349518088,1737270646054,-500.0,0.00021917,3]
[349518089,1737270646063,-500.0,0.00021917,3]
[349518090,1737270646073,-500.0,0.00021917,3]
[349518091,1737270646083,-555.18906251,0.00021917,3]
[349518092,1737270646092,-500.0,0.00021917,3]
[349518093,1737270646102,-385.4145147,0.00021917,3]
[349518094,1737270646111,-500.0,0.00021917,3]
[349518095,1737270646122,-500.0,0.00021917,3]
[349518096,1737270646131,-500.0,0.00021917,3]
[349518097,1737270646140,-502.62,0.00021917,3]
[349518098,1737270646150,-500.0,0.00021917,3]
[349518099,1737270646160,-501.81,0.00021917,3]
[349518100,1737270646169,-500.0,0.00021917,3]
[349518101,1737270646179,-500.0,0.00021917,3]
[349518102,1737270646188,-500.0,0.00021917,3]
[349518103,1737270646198,-500.0,0.00021917,3]
[349518104,1737270646207,-151.0,0.00021917,2]
[349518106,1737270646217,-151.0,0.00021917,2]
[349518108,1737270646226,-151.0,0.00021917,2]
[349518110,1737270646235,-151.0,0.00021917,2]
[349518111,1737270646244,-500.0,0.00021917,3]
[349518112,1737270646254,-536.67183099,0.00021917,3]
[349518113,1737270646266,-151.0,0.00021917,2]
[349518114,1737270646275,-151.0,0.00021917,2]
[349518115,1737270646285,-500.0,0.00021917,3]
[349518116,1737270646295,-151.0,0.00021917,2]
[349518117,1737270646306,-151.0,0.00021917,2]
[349518118,1737270646315,-500.0,0.00021917,3]
[349518119,1737270646325,-500.0,0.00021917,3]
[349518120,1737270646335,-500.0,0.00021917,3]
[349518121,1737270646345,-500.0,0.00021917,3]
[349518122,1737270646354,-500.0,0.00021917,3]
[349518123,1737270646364,-500.0,0.00021917,3]
[349518124,1737270646373,-500.0,0.00021917,3]
[349518125,1737270646382,-500.0,0.00021917,3]
[349518126,1737270646392,-500.0,0.00021917,3]
[349518127,1737270646401,-500.0,0.00021917,3]
[349518128,1737270646411,-628.32,0.00021917,3]
[349518129,1737270646420,-500.0,0.00021917,3]
[349518130,1737270646430,-500.0,0.00021917,3]
[349518131,1737270646439,-500.0,0.00021917,3]
[349518132,1737270646539,-730.71,0.00021917,3]
[349518133,1737270646549,-500.0,0.00021917,3]
[349518134,1737270646559,-500.0,0.00021917,3]
[349518135,1737270646568,-500.0,0.00021917,3]
[349518136,1737270646578,-500.0,0.00021917,3]
[349518137,1737270646587,-500.0,0.00021917,3]
[349518138,1737270646596,-513.47,0.00021917,3]
[349518139,1737270646605,-504.70023193,0.00021917,3]
[349518140,1737270646615,-500.0,0.00021917,3]
[349518141,1737270646624,-500.0,0.00021917,3]
[349518142,1737270646633,-500.0,0.00021917,3]
[349518143,1737270646642,-500.0,0.00021917,3]
[349518144,1737270646652,-500.0,0.00021917,3]
[349518145,1737270646661,-151.0,0.00021917,2]
[349518146,1737270646671,-151.0,0.00021917,2]
[349518147,1737270646680,-500.0,0.00021917,3]
[349518148,1737270646689,-151.0,0.00021917,2]
[349518149,1737270646699,-151.0,0.00021917,2]
[349518150,1737270646708,-500.0,0.00021917,3]
[349518151,1737270646718,-500.0,0.00021917,3]
[349518152,1737270646727,-500.0,0.00021917,3]
[349518153,1737270646737,-500.0,0.00021917,3]
[349518154,1737270646746,-604.48,0.00021917,3]
[349518155,1737270646755,-500.0,0.00021917,3]
[349518156,1737270646765,-500.0,0.00021917,3]
[349518157,1737270646775,-508.34623923,0.00021917,3]
[349518158,1737270646784,-500.0,0.00021917,3]
[349518159,1737270646793,-500.0,0.00021917,3]
[349518160,1737270646802,-634.39290009,0.00021917,3]
[349518161,1737270646811,-500.0,0.00021917,3]
[349518162,1737270646820,-164.467162,0.00021917,2]
[349518163,1737270646829,-164.467162,0.00021917,2]
[349518164,1737270646839,-164.467162,0.00021917,2]
[349518165,1737270646848,-164.467162,0.00021917,2]
[349518166,1737270646857,-1000.0,0.00022,22]
[349518167,1737270646868,-1416.89128508,0.00022003,3]
[349518168,1737270646877,-516.57558204,0.00022054,3]
[349518169,1737270646887,-500.0,0.00022054,3]
[349518170,1737270646896,-500.0,0.00022054,3]
[349518171,1737270646905,-500.0,0.00022054,3]
[349518172,1737270646914,-502.32725409,0.00022054,3]
[349518173,1737270646923,-500.0,0.00022054,3]
[349518174,1737270646933,-500.0,0.00022054,3]
[349518175,1737270646942,-500.0,0.00022054,3]
[349518176,1737270646951,-595.78261997,0.00022054,3]
[349518177,1737270646960,-500.0,0.00022054,3]
[349518178,1737270646969,-500.0,0.00022054,3]
[349518179,1737270646978,-500.0,0.00022054,3]
[349518180,1737270646988,-500.0,0.00022054,3]
[349518181,1737270646997,-478.59770711,0.00022054,3]
[349518182,1737270647006,-500.0,0.00022054,3]
[349518183,1737270647016,-257.54651759,0.00022054,3]
[349518184,1737270647025,-500.0,0.00022054,3]
[349518185,1737270647035,-187.7885143,0.00022054,3]
[349518186,1737270647044,-500.0,0.00022054,3]
[349518187,1737270647054,-500.0,0.00022054,3]
[349518188,1737270647064,-200.0,0.00022054,3]
[349518189,1737270647076,-500.0,0.00022054,3]
[349518190,1737270647087,-500.0,0.00022054,3]
[349518191,1737270647097,-500.0,0.00022054,3]
[349518192,1737270647107,-500.0,0.00022054,3]
[349518193,1737270647117,-500.0,0.00022054,3]
[349518194,1737270647126,-500.0,0.00022054,3]
[349518195,1737270647136,-514.98161789,0.00022054,3]
[349518196,1737270647145,-151.0,0.00022054,7]
[349518197,1737270647155,-500.0,0.00022054,3]
[349518198,1737270647164,-500.0,0.00022054,3]
[349518199,1737270647174,-500.0,0.00022054,3]
[349518200,1737270647183,-500.0,0.00022054,3]
[349518201,1737270647193,-501.43794502,0.00022054,3]
[349518202,1737270647203,-500.0,0.00022054,3]
[349518203,1737270647212,-500.0,0.00022054,3]
[349518204,1737270647221,-500.0,0.00022054,3]
[349518205,1737270647231,-562.53,0.00022054,3]
[349518206,1737270647240,-500.0,0.00022054,3]
[349518207,1737270647251,-500.0,0.00022054,3]
[349518208,1737270647262,-500.0,0.00022054,3]
[349518209,1737270647272,-500.0,0.00022054,3]
[349518210,1737270647282,-500.0,0.00022054,3]
[349518211,1737270647291,-508.5,0.00022054,3]
[349518212,1737270647303,-165.75052654,0.00022054,3]
[349518213,1737270647312,-500.0,0.00022054,3]